Workbook

Sheet BP
A4: BALANÇO PATRIMONIAL
A6: JANEIRO À DEZEMBRO DE 2019
A8: ATIVO | B8: 2018 | C8: 2019 | D8: PASSIVO | E8: 2018 | F8: 2019
A9: CIRCULANTE | B9: =B10+B14 -> 143,874.54 | C9: =C10+C14 -> 85,574.08 | D9: CIRCULANTE | E9: =E10+E14+E19 -> 36,534.27 | F9: =F10+F14+F19 -> 35,091.01
A10: DISPONIBILIDADES | B10: =SUM(B11:B13) -> 110,158.90 | C10: =SUM(C11:C13) -> 68,212.19 | D10: CIRCULANTE (EDUCAÇÃO) | E10: =SUM(E11:E13) -> 27,638.58 | F10: =SUM(F11:F13) -> 22,927.36
A11: Numerários | B11: 692.16 | C11: 370.01 | D11: Obrigações Trabalhistas | E11: 24,328.71 | F11: 15,638.14
A12: Bancos Conta Movimento | B12: 53,383.82 | C12: 15,963.85 | D12: Obrigações Sociais a Recolher | E12: 3,309.87 | F12: 7,289.22
A13: Valores Mobiliários - Aplicações Doações | B13: 56,082.92 | C13: 51,878.33
A14: ADIANTAMENTOS/CRÉDITOS | B14: 33,715.64 | C14: 17,361.89 | D14: CIRCULANTE (FMDCA) | E14: =SUM(E15:E17) -> 6,434.76 | F14: =SUM(F15:F17) -> 7,626.51
D15: Obrigações Trabalhistas | E15: 3,268.51 | F15: 3,025.13
D16: Obrigações Sociais a Recolher | E16: 946.05 | F16: 2,118.58
A17: NÃO CIRCULANTE | B17: =B18 -> 451,107.98 | C17: =C18 -> 451,107.98 | D17: Contas a Pagar | E17: 2,220.20 | F17: 2,482.80
A18: IMOBILIZADO | B18: =SUM(B19:B20) -> 451,107.98 | C18: =SUM(C19:C20) -> 451,107.98
A19: Bens Imóveis (Recursos próprios) | B19: 223,807.91 | C19: 223,807.91 | D19: CIRCULANTE (RECURSOS PRÓPRIOS) | E19: =SUM(E20:E21) -> 2,460.93 | F19: =SUM(F20:F21) -> 4,537.14
A20: Bens Móveis (Recursos próprios) | B20: 227,300.07 | C20: 227,300.07 | D20: Fornecedores | E20: 0 | F20: 4,537.14
D21: Obrigações Sociais a Recolher | E21: 2,460.93 | F21: 0
D23: PATRIMÔNIO SOCIAL | E23: =SUM(E24:E26) -> 558,448.25 | F23: =SUM(F24:F26) -> 501,591.05
D24: Fundo Patrimonial | E24: 25,736.63 | F24: 25,736.63
D25: Superavits/Deficits Acumulados | E25: =532711.62-155945.49 -> 376,766.13 | F25: =532711.62 -> 532,711.62
D26: Superavits/Deficits do Exercicío | E26: 155,945.49 | F26: (56,857.20)
A28: TOTAL DO ATIVO | B28: =B9+B17 -> 594,982.52 | C28: =C9+C17 -> 536,682.06 | D28: TOTAL DO PASSIVO | E28: =E9+E23 -> 594,982.52 | F28: =F9+F23 -> 536,682.06
F30: Batatais, 31 de dezembro de 2019.
B36: João Fernando Zapparoli de Barrros | E36: José Roberto Del Toso
B37: Presidente | E37: TC1SP080776/O-0
B38: CPF: 971.242.818-49 | E38: CPF:203.394.028-49
E45: Maria Claret Dal Piccolo Del Toso
E46: Tesoureira
E47: CPF: 175.438.538-92

Sheet DRE.
A1: ASSOCIAÇÃO BENEFICENTE JOSÉ MARTINS DE BARROS
A2: CNPJ: 44.948.552/0001-00
A4: DEMONSTRAÇÃO DO RESULTADO DO EXERCÍCIO
B5: 2018 | C5: 2019
A6: RECEITA OPERACIONAL BRUTA | B6: =B8+B20 -> 821,289.20 | C6: =C8+C20 -> 656,523.37
A8: Receita Bruta de Educação | B8: =SUM(B9:B14)+B15 -> 771,289.20 | C8: =SUM(C9:C14)+C15 -> 586,523.37
A9: Convênios | B9: 0 | C9: 0
A10: Subvenções | B10: 0 | C10: 0
A11: Parceria Ministério da Educação e Cultura (FUNDEB) | B11: 388,207.82 | C11: 399,901.81
A12: Parceria Conselho Mun.Dir.Criança e Adolescente | B12: 246,419.50 | C12: 75,260.00
A13: Doações Pessoas Jurídicas | B13: 12,855.00 | C13: 11,611.00
A14: Doações Pessoas Físicas | B14: 106,984.83 | C14: 83,777.31
A15: Outras Receitas | B15: =SUM(B16:B18) -> 16,822.05 | C15: =SUM(C16:C18) -> 15,973.25
A16: Promoções e Eventos | B16: 13,442.61 | C16: 13,884.83
A17: Créditos Nota Fiscal Paulista | B17: 249.48 | C17: 1,618.42
A18: Aluguel Muro | B18: 3,129.96 | C18: 470.00
A20: Receita Bruta de Assitência Social | B20: =SUM(B21:B23) -> 50,000.00 | C20: =SUM(C21:C23) -> 70,000.00
A21: Convênios | B21: 0 | C21: 0
A22: Subvenções | B22: 0 | C22: 0
A23: Parceria Prefeitura Municipal de Batatais | B23: 50,000.00 | C23: 70,000.00
A25: RECEITA LÍQUIDA | B25: =B8+B20 -> 821,289.20 | C25: =C8+C20 -> 656,523.37
A27: Custo do Serviço Educacional | B27: =B28+B34+B39+B42+B48+B52 -> (490,322.34) | C27: =C28+C34+C39+C42+C48+C52 -> (620,698.46)
A28: Despesas com Recursos Humanos (FUNDEB) | B28: =(SUM(B29:B32)) -> (447,329.41) | C28: =(SUM(C29:C32)) -> (455,304.93)
A29: Salários, Férias e 13º Salário | B29: (376,717.43) | C29: (381,131.58)
A30: Plano de Saúde | B30: (11,549.34) | C30: (12,880.10)
A31: Vale Alimentação | B31: (26,614.33) | C31: (25,908.61)
A32: Encargos Sociais (FGTS) | B32: (32,448.31) | C32: (35,384.64)
A34: Despesas Recursos Humanos (CMDCA) | B34: =SUM(B35:B37) -> 0 | C34: =SUM(C35:C37) -> (91,078.90)
A35: Salários, Férias e 13º Salário | B35: 0 | C35: (79,505.48)
A36: Plano de Saúde e Vale Alimentação | B36: 0 | C36: (5,196.25)
A37: Encargos Sociais (FGTS) | B37: 0 | C37: (6,377.17)
A39: Despesas Recursos Humanos (Recursos Próprios) | B39: =B40 -> (4,991.76) | C39: =C40 -> 0
A40: Encargos Sociais (FGTS) | B40: (4,991.76) | C40: 0
A42: Projetos e Atividades (FUNDEB) | B42: =SUM(B43:B46) -> (19,264.90) | C42: =SUM(C43:C46) -> (12,802.24)
A43: Material de Uso e Consumo | B43: (2,780.99) | C43: (1,347.39)
A44: Terinamento e Capacitação | B44: (350.00) | C44: 0
A45: Serviços de Terceiros (RPA) | B45: (11,252.22) | C45: (5,828.90)
A46: Material de Higiene, Limpeza e Descartáveis | B46: (4,881.69) | C46: (5,625.95)
A48: Projetos e Atividades (CMDCA) | B48: =SUM(B49:B50) -> 0 | C48: =SUM(C49:C50) -> (48,968.82)
A49: Serviços de Terceiros | B49: 0 | C49: (47,499.41)
A50: Material de Higiene, Limpeza e Descartáveis | B50: 0 | C50: (1,469.41)
A52: Projetos e Atividades (Recursos Próprios) | B52: =SUM(B53:B57) -> (18,736.27) | C52: =SUM(C53:C57) -> (12,543.57)
A53: Material de Uso e Consumo | B53: (3,232.32) | C53: 0
A54: Serviços de Terceiros | B54: (15,503.95) | C54: (7,272.94)
A55: Material de Higiene, Limpeza e Descartáveis | B55: 0 | C55: (197.94)
A56: Uniforme Funcionários | B56: 0 | C56: (2,926.50)
A57: Dispesas Diretas Operacionais | B57: 0 | C57: (2,146.19)
A59: Material Didático
A60: Alimentação
A61: Transporte
A62: Uniforme Funcionários
A63: Moradia
A64: Projetos e Atividades - Educação Básica em Tempo Integral
A65: Custo do Serviço de Assistência Social | B65: =SUM(B66:B67) -> (114,774.35) | C65: =SUM(C66:C67) -> (50.00)
A66: Despesas com Pessoal | B66: (54,119.70) | C66: 0
A67: Assistência Social Gratuita | B67: (60,654.65) | C67: (50.00)
A69: RESULTADO OPERACIONAL BRUTO | B69: =B25+B27+B65 -> 216,192.51 | C69: =C25+C27+C65 -> 35,774.91
A71: Despesas Operacionais | B71: =B72+B86+B95 -> (62,668.43) | C71: =C72+C86+C95 -> (91,988.17)
A72: Despesas Administrativas (FUNDEB) | B72: =SUM(B73:B84) -> (59,737.06) | C72: =SUM(C73:C84) -> (54,208.90)
A73: Bolsa à Estagiários | B73: (26,010.50) | C73: (11,434.00)
A74: Energia Elétrica | B74: (11,121.06) | C74: (11,913.75)
A75: Informática | B75: (2,597.78) | C75: 0
A76: Serviços de Comunicação e Postagens | B76: (5,688.78) | C76: (4,153.14)
A77: Serviços de Terceiros (RPA) | B77: (2,962.50) | C77: (3,856.25)
A78: Manutenção de Edificação | B78: (4,246.75) | C78: (6,225.60)
A79: Material de Escritório | B79: (3,055.63) | C79: (1,195.20)
A80: Combustíveis | B80: (4,054.06) | C80: (4,364.01)
A81: Material Pedagógico | C81: (976.98)
A82: Honorários Contábeis | B82: 0 | C82: (5,760.00)
A83: Assessoria Institucional | C83: (2,700.00)
A84: Bens do Ativo Deduz. Como Despesa | B84: 0 | C84: (1,629.97)
A86: Despesas Administrativas (CMDCA) | B86: =SUM(B87:B93) -> 0 | C86: =SUM(C87:C93) -> (18,249.27)
A87: Bolsa à Estagiários | B87: 0 | C87: (9,673.30)
A88: Produtos Alimentícios | B88: 0 | C88: (5,041.51)
A89: Honorários Contábeis | B89: 0 | C89: (1,935.00)
A90: Manutenção de Edificação | B90: 0 | C90: (821.97)
A91: Material de Escritório | B91: 0 | C91: (323.20)
A92: Material Pedagógico | B92: 0 | C92: (354.29)
A93: Bens do Ativo Deduz. Como Despesa | B93: 0 | C93: (100.00)
A95: Despesas Administrativas (Recursos Próprios) | B95: =SUM(B96:B103) -> (2,931.37) | C95: =SUM(C96:C103) -> (19,530.00)
A96: Serviços de Comunicação e Postagens | B96: (981.96) | C96: (536.07)
A97: Honorários Contábeis | B97: 0 | C97: (645.00)
A98: Despesas c/ Cartório | B98: 0 | C98: (341.63)
A99: Manutenção de Edificação | B99: (1,273.00) | C99: (5,080.60)
A100: Combustíveis | B100: 0 | C100: (560.00)
A101: Associação de Classe | B101: (676.41) | C101: 0
A102: Assessoria Institucional | B102: 0 | C102: (11,866.70)
A103: Bens do Ativo Deduz. Como Despesa | B103: 0 | C103: (500.00)
A105: RESULTADO FINANCEIRO | B105: =SUM(B106:B110) -> 2,421.41 | C105: =SUM(C106:C110) -> (643.94)
A106: Rendimento de Aplicações Financeiras | B106: 5,967.36 | C106: 3,238.23
A107: Descontos Recebidos | B107: 259.17 | C107: 64.88
A108: IRRF s/ Aplicações | B108: (1,204.99) | C108: (684.27)
A109: Despesas Bancárias | B109: (2,500.62) | C109: (3,255.66)
A110: Juros Pagos | B110: (99.51) | C110: (7.12)
A112: ISENÇÕES USUFRUÍDAS | B112: =SUM(B113:B114) -> 0 | C112: =SUM(C113:C114) -> 0
A113: Renúncia Fiscal Obtida | B113: 108,965.82 | C113: 136,166.84
A114: Renúncia Fiscal | B114: (108,965.82) | C114: (136,166.84)
A116: = Superávit (Déficit) do Exercício | B116: =B69+B71+B105+B112 -> 155,945.49 | C116: =C69+C71+C105+C112 -> (56,857.20)
C118: Batatais, 31 de dezembro de 2019.
A123: _________________________________
A124: João Fernando Zapparoli de Barrros | B124: José Roberto Del Toso
A125: Presidente | B125: TC1SP080776/O-0
A126: CPF: 971.242.818-49 | B126: CPF:203.394.028-49
B132: Maria Claret Dal Piccolo Del Toso
B133: Tesoureira
B134: CPF: 175.438.538-92

Sheet DRE (hidden)
A3: ASSOCIAÇÃO BENEFICENTE JOSÉ MARTINS DE BARROS
A4: CNPJ: 44.948.552/0001-00
A7: DEMONSTRAÇÃO DO RESULTADO DO EXERCÍCIO
B9: 2018 | C9: 2019
A10: RECEITAS | B10: =B11+B13+B16+B22+B108 -> 827,515.73 | C10: =C11+C13+C16+C22+C108 -> 659,826.48
A11: SUBVENÇÕES FEDERAIS | B11: =B12 -> 388,207.82 | C11: =C12 -> 399,901.81
A12: Ministério da Educação e Cultura (FUNDEB) | B12: 388,207.82 | C12: 399,901.81
A13: SUBVENÇÕES MUNICIPAIS | B13: =SUM(B14:B15) -> 296,419.50 | C13: =SUM(C14:C15) -> 145,260.00
A14: Prefeitura Municipal de Batatais (Assistência Social) | B14: 50,000.00 | C14: 70,000.00
A15: Conselho Mun.Dir.Criança e Adolescente | B15: 246,419.50 | C15: 75,260.00
A16: DOAÇÕES | B16: =SUM(B17:B21) -> 119,839.83 | C16: =SUM(C17:C21) -> 95,368.31
A17: Pessoas Jurídicas | B17: 12,855.00 | C17: 11,591.00
A18: Pessoas Físicas | B18: 106,984.83 | C18: 83,777.31
A19: Doações
A20: Outras
A21: Brindes
A22: OUTRAS RECEITAS | B22: =SUM(B23:B27) -> 23,048.58 | C22: =SUM(C23:C27) -> 19,296.36
A23: Promoções e Eventos | B23: 13,442.61 | C23: 13,884.83
A24: Créditos Nota Fiscal Paulista | B24: 249.48 | C24: 1,618.42
A25: Aluguel Muro | B25: 3,129.96 | C25: 490.00
A26: Rendimento de Aplicações Financeiras | B26: 5,967.36 | C26: 3,238.23
A27: Descontos Recebidos | B27: 259.17 | C27: 64.88
A28: DESPESAS | B28: =B29+B37+B54+B58+B74+B67 -> (671,570.24) | C28: =C29+C37+C54+C58+C74+C67+C94+C99 -> (717,042.78)
A29: DESPESAS COM PESSOAL (EDUCAÇÃO) | B29: =SUM(B30:B36) -> (473,339.91) | C29: =SUM(C30:C36) -> (466,738.93)
A30: Ordenados,Sal, Gratif. Outras Rem.a Emp. | B30: (376,717.43) | C30: (381,131.58)
A31: Encargos Sociais | B31: (32,448.31) | C31: (35,384.64)
A32: Multa rescisoria | B32: 0
A33: Verbas Rescisórias | B33: 0
A34: Assistência Médica e Social | B34: (11,549.34) | C34: (12,880.10)
A35: Vale Alimentação | B35: (26,614.33) | C35: (25,908.61)
A36: Bolsa Estagio | B36: (26,010.50) | C36: (11,434.00)
A37: DESPESAS ADMINISTRATIVAS (EDUCAÇÃO) | B37: =SUM(B38:B53) -> (52,991.46) | C37: =SUM(C38:C53) -> (55,577.14)
A38: Informática | B38: (2,597.78) | C38: 0
A39: Energia Elétrica | B39: (11,121.06) | C39: (11,913.75)
A40: Serviços de Comunicação e Postagens | B40: (5,688.78) | C40: (4,153.14)
A41: Manutenção de Edificações/Máquinas e Equipamentos | B41: =-296-3950.75 -> (4,246.75) | C41: (6,225.60)
A42: Impressos e Material de Escritório | B42: (3,055.63) | C42: (1,195.20)
A43: Material de Uso e Consumo | B43: (2,780.99) | C43: (1,347.39)
A44: Treinamento e Capacitação | B44: (350.00) | C44: 0
A45: Serviços de Terceiros | B45: (14,214.72) | C45: (9,685.15)
A46: Combustiveis e Lubrificantes | B46: =-710-3344.06 -> (4,054.06) | C46: (4,364.01)
A47: Honorários Contábeis | B47: 0 | C47: (5,760.00)
A48: Bens Do Ativo Deduz. Como Despesas | B48: 0 | C48: (1,629.97)
A49: Material Pedagógico e Interativo | B49: 0 | C49: (976.98)
A50: Despesas diretas oper.custeio projetos | B50: 0 | C50: 0
A51: Assessoria Institucional | B51: 0 | C51: (2,700.00)
A52: Material De Higiene, Limpeza E Descartáveis | B52: (4,881.69) | C52: (5,625.95)
A53: Associaçao de classe | B53: 0 | C53: 0
A54: DESPESAS COM PESSOAL (ASSIST.SOCIAL) | B54: =SUM(B55:B57) -> (54,119.70) | C54: =SUM(C55:C57) -> 0
A55: Ordenados,Sal, Gratif. Outras Rem.a Emp. | B55: (48,768.46) | C55: 0
A56: Encargos Sociais | B56: (2,175.44) | C56: 0
A57: Vale Alimentação | B57: (3,175.80) | C57: 0
A58: DESPESAS ADMINISTRATIVAS (ASSIST.SOCIAL) | B58: =SUM(B59:B66) -> (60,654.65) | C58: =SUM(C59:C66) -> (50.00)
A59: Vale Alimentação
A60: Serviços De Terceiros | B60: (38,986.25) | C60: 0
A61: Manut. Móveis, Utensílios E Equipamentos | B61: (2,240.00) | C61: (50.00)
A62: Atividades Sócio Educativas | B62: (1,201.63) | C62: 0
A63: Honorários Contábeis | B63: (6,269.29) | C63: 0
A64: Assessoria Institucional | B64: (4,800.00) | C64: 0
A65: Material Uso E Consumo | B65: 0
A66: Despesas Diretas Oper. E Custeios | B66: (7,157.48) | C66: 0
A67: DESPESAS COM PESSOAL (REC. PRÓPRIOS) | B67: =SUM(B68:B73) -> (4,991.76) | C67: =SUM(C68:C73) -> 0
A68: Ordenados e salários
A69: Encargos Sociais - FGTS | B69: (4,991.76) | C69: 0
A70: 13ºSalário
A71: Férias
A72: Vale Alimentação
A73: Indenizações e Avisos
A74: DESPESAS ADMINISTRATIVAS (REC. PRÓPRIOS) | B74: =SUM(B75:B93) -> (25,472.76) | C74: =SUM(C75:C93) -> (35,945.72)
A75: Serviços De Terceiros | B75: (15,503.95) | C75: (7,272.94)
A76: Serviços De Comunicação E Postagens | B76: (981.96) | C76: (461.17)
A77: Material De Higiene, Limpeza E Descartáveis | C77: (197.94)
A78: Assistencia Contábil | B78: 0 | C78: (645.00)
A79: Despesas C/Cartorio | B79: 0 | C79: (341.63)
A80: Material Para Uso E Consumo | B80: =-3.2-3229.12 -> (3,232.32) | C80: 0
A81: Manutenção De Edificações/ Móveis E Utensílios | B81: =-45-1228 -> (1,273.00) | C81: =-540.6-4540 -> (5,080.60)
A82: Combustiveis E Lubrificantes | B82: 0 | C82: (560.00)
A83: Bens Do Ativo Deduz. Como Despesas | B83: 0 | C83: (500.00)
A84: Informática | B84: 0 | C84: 0
A85: Uniformes Funcionários | B85: 0 | C85: (2,926.50)
A86: Vale Alimentação | B86: 0
A87: Despesas Diretas Oper. E Custeios | B87: 0 | C87: (2,146.19)
A88: Despesas C/ Eventos | B88: 0 | C88: 0
A89: Associaçao De Classe | B89: (676.41) | C89: 0
A90: Assessoria Institucional | C90: (11,866.70)
A91: IRRF s/ Aplicações | B91: (1,204.99) | C91: (684.27)
A92: Despesas Bancárias | B92: (2,500.62) | C92: (3,255.66)
A93: Juros Pagos | B93: (99.51) | C93: (7.12)
A94: DESPESAS COM PESSOAL (CMDCA) | B94: =SUM(B95:B98) -> 0 | C94: =SUM(C95:C98) -> (101,186.20)
A95: Ordenados,Sal, Gratif. Outras Rem.a Emp. | B95: 0 | C95: (79,505.48)
A96: Encargos Sociais | B96: 0 | C96: (6,377.17)
A97: Vale Alimentação | B97: 0 | C97: (5,196.25)
A98: Bolsa Estagio | B98: 0 | C98: (10,107.30)
A99: DESPESAS ADMINISTRATIVAS (CMDCA) | B99: =SUM(B100:B107) -> 0 | C99: (57,544.79)
A100: Serviços De Terceiros | B100: 0 | C100: (47,499.41)
A101: Produtos Alimentícios | B101: 0 | C101: (5,041.51)
A102: Material De Higiene, Limpeza E Descartáveis | B102: 0 | C102: (1,469.41)
A103: Honorários Contábeis | B103: 0 | C103: (1,935.00)
A104: Manutenção De Edificações | B104: 0 | C104: (821.97)
A105: Bens Do Ativo Deduz. Como Despesas | B105: 0 | C105: (100.00)
A106: Impressos E Material De Escritório | B106: 0 | C106: (323.20)
A107: Material Pedagógico E Interativo | B107: 0 | C107: (354.29)
A108: ISENÇÕES USUFRUÍDAS | B108: =SUM(B109:B110) -> 0 | C108: =SUM(C109:C110) -> 0
A109: Renúncia Fiscal Obtida | B109: 108,965.82 | C109: 136,166.84
A110: Renúncia Fiscal | B110: (108,965.82) | C110: (136,166.84)
A111: = Superávit (Déficit) do Exercício | B111: =B10+B28 -> 155,945.49 | C111: =C10+C28 -> (57,216.30)
C113: Batatais, 31 de dezembro de 2019.
A118: _________________________________
A119: João Fernando Zapparoli de Barrros | B119: José Roberto Del Toso
A120: Presidente | B120: TC1SP080776/O-0
A121: CPF: 971.242.818-49 | B121: CPF:203.394.028-49
B127: Maria Claret Dal Piccolo Del Toso
B128: Tesoureira
B129: CPF: 175.438.538-92

Sheet DMPS
A3: DEMONSTRAÇÃO DAS MUTAÇÕES DO PATRIMÔNIO SOCIAL
A5: CONTA:PATRIMÔNIO SOCIAL | B5: 2017 | C5: 2018 | D5: 2019
A6: SALDO ANTERIOR: | B6: 587,196.77 | C6: =B13 -> 402,502.76 | D6: =C13 -> 558,448.25
A7: (+) Fundo de Valorização de Imóvel
A8: (-) Depreciação Acumulada
A9: (+) Transferências Recebidas
A10: (+) Transferências Enviadas
A11: (-) Ajustes de exercicios anteriores | B11: (100,683.41)
A12: (+) Acréscimo/Decréscimo Patrimonial | B12: (84,010.60) | C12: 155,945.49 | D12: (56,857.20)
A13: SALDO ATUAL | B13: =SUM(B6:B12) -> 402,502.76 | C13: =SUM(C6:C12) -> 558,448.25 | D13: =SUM(D6:D12) -> 501,591.05
D15: Batatais, 31 de dezembro de 2019.
A21: João Fernando Zapparoli de Barros | C21: José Roberto Del Toso
A22: Presidente | C22: TC1SP080776/O-0
A23: CPF: 971.242.818-49 | C23: CPF:203.394.028-49
C30: Maria Claret Dal Piccolo Del Toso
C31: Tesoureira
C32: CPF: 175.438.538-92

Sheet DOAR (hidden)
A4: ANEXO III
A6: DEMONSTRAÇÕES DAS ORIGENS E APLICAÇÕES DE RECURSOS
A9: ORIGENS | C9: 2015 | D9: 2016 | E9: 2017 | F9: 2018
A10: Superávit (ou déficit) do exercício | C10: 38,223.70 | D10: 214,670.19 | E10: =-DRE!#REF! ->  | F10: =DRE!B111 -> 155,945.49
A11: Depreciação
A12: Variações do resultado de exercícios futuros | D12: 20.07
A13: Aumento do passivo exigível a longo prazo
A14: Alienação de bens do imobilizado
A15: Transferências recebidas
A16: Total de Origens | C16: =SUM(C10:C15) -> 38,223.70 | D16: =SUM(D10:D15) -> 214,690.26 | E16: =SUM(E10:E15) ->  | F16: =SUM(F10:F15) -> 155,945.49
A17: APLICAÇÕES
A18: Aquisição de Imobilizado | C18: 79,885.22 | D18: 91,334.55 | E18: 4,590.75 | F18: 54,661.81
A19: Aumento do ativo permanente – investimento
A20: Aumento do ativo diferido | E20: 191.35 | F20: 13,757.66
A21: Aumento do Ativo realizável a longo prazo
A22: Redução do passivo exigível a longo prazo
A23: Transferências | H23: 2016 | I23: 2017 | J23: 2018
A24: Total de Aplicações | C24: =SUM(C18:C23) -> 79,885.22 | D24: =SUM(D18:D23) -> 91,334.55 | E24: =SUM(E18:E23) -> 4,782.10 | F24: =SUM(F18:F23) -> 68,419.47 | G24: a CIRCULANTE | H24: 242,742.58 | I24: 53,649.17 | J24: 144,944.54
A25: Aumento (ou redução) do capital circulante líquido | C25: =C16-C24 -> (41,661.52) | D25: =D16-D24 -> 123,355.71 | E25: =E16-E24 ->  | F25: =F16-F24 -> 87,526.02 | G25: p CIRCULANTE | H25: 47,401.23 | I25: 47,592.58 | J25: 33,834.92
A26: VARIAÇÕES DO CAPITAL CIRCULANTE LÍQUIDO
A27: (+) Variação do ativo circulante
A28: (-) Variação do passivo circulante | G28: =I24-H24 -> -189,093.41 | H28: =J24-I24 -> 91,295.37
A29: Aumento (ou redução) do capital circulante líquido | C29: =C25+C27-C28 -> (41,661.52) | D29: =D25+D27-D28 -> 123,355.71 | E29: =E25+E27-E28 ->  | F29: =F25+F27-F28 -> 87,526.02 | G29: =I25-H25 -> 191.35 | H29: =J25-I25 -> -13,757.66
G30: =SUM(G28:G29) -> -188,902.06 | H30: =SUM(H28:H29) -> 77,537.71
G32: =E29-G30 ->  | H32: =F29-H30 -> 9,988.31
A37: João Fernando Zapparoli de Barrros | E37: José Roberto Del Toso
A38: Presidente | E38: TC1SP080776/O-0
A39: CPF: 971.242.818-49 | E39: CPF:203.394.028-49
E46: Maria Claret Dal Piccolo Del Toso
E47: Tesoureira
E48: CPF: 175.438.538-92

Sheet DVA (hidden)
A3: ASSOCIAÇÃO BENEFICENTE JOSÉ MARTINS DE BARROS
A4: CNPJ: 44.948.552/0001-00
A7: DEMONSTRAÇÃO DO VALOR ADICIONADO
B10: 2016 | C10: 2017 | D10: 2018 | E10: 2019
A11: 1 – RECEITAS
A12: 1.1) Vendas de mercadorias, produtos e serviços: | B12: 569,196.83 | C12: 320,416.09 | D12: =452047.2+40000 -> 492,047.20 | E12: =322788.4 -> 322,788.40
A13: 1.2) Ministério da Educação e Cultura (FUNDEB) | B13: 381,379.82 | C13: 359,051.44 | D13: 388,207.82 | E13: 399,901.81
A14: 1.3) Prefeitura Municipal de Batatais | D14: 50,000.00 | E14: 70,000.00
A15: 1.4) Provisão para créditos de liquidação duvidosa – Reversão / (Constituição)
A16: 1.5) Não operacionais
A17: 2 - INSUMOS ADQUIRIDOS DE TERCEIROS
A18: (inclui os valores dos impostos – ICMS, IPI, PIS e COFINS)
A19: 2.1) Custos dos produtos, das mercadorias e dos serviços vendidos
A20: 2.2) Materiais, energia, serviços de terceiros e outros (Educação) | B20: 67,691.10 | C20: =9965.14+6096.61+23175.88+7579.61+8476.02+5574+1167.82 -> 62,035.08 | D20: =11121.06+6326.78+14956.72+4881.69+1697.78+2780.99 -> 41,765.02 | E20: 40,437.64
A21: 2.3) Materiais, energia, serviços de terceiros e outros (Assistência Social) | B21: 7,605.65 | C21: 8,732.75 | D21: =36212+6269.29+4800 -> 47,281.29 | E21: 50.00
A22: 2.4) Materiais, energia, serviços de terceiros e outros (Rec. Próprios) | B22: 59,893.25 | C22: 53,914.38 | D22: =15503.95+981.96 -> 16,485.91 | E22: 27,363.15
A23: 2.5) Materiais, energia, serviços de terceiros e outros (CMDCA) | D23: 0 | E23: 50,610.67
A24: 2.6) Materiais consumidos (Educação) | B24: 58,986.05 | C24: =45897.58+4037.56+3336.07+215.1 -> 53,486.31 | D24: 10,516.44 | E24: 15,139.50
A25: 2.7) Materiais consumidos (Assistência Social) | B25: 2,070.79 | C25: =833.02+517.09 -> 1,350.11 | D25: 11,308.11 | E25: 0
A26: 2.8) Materiais consumidos (Rec. Próprios) | B26: 18,082.41 | C26: 27,969.64 | D26: =21743.54-16485.91+3805.12 -> 9,062.75 | E26: =4635.52+3947.05 -> 8,582.57
A27: 2.9) Materiais consumidos (CMDCA) | D27: 0 | E27: 6,934.12
A28: 2.10) Perda/Recuperação de valores ativos
A29: 3 - VALOR ADICIONADO BRUTO (1-2) | B29: =(B12+B13)-B20-B21-B22-B24-B25-B26 -> 736,247.40 | C29: =(C12+C13)-C20-C21-C22-C24-C25-C26 -> 471,979.26 | D29: =(D12+D13+D14)-D20-D21-D22-D24-D25-D26 -> 793,835.50 | E29: =(E12+E13+E14)-E20-E21-E22-E24-E25-E26-E23-E27 -> 643,572.56
A30: 4 – RETENÇÕES
A31: 4.1) Depreciações, amortização e exaustão
A32: 5 - VALOR ADICIONADO LÍQUIDO PRODUZIDO PELA ENTIDADE (3-4) | B32: =B29-B31 -> 736,247.40 | C32: =C29-C31 -> 471,979.26 | D32: =D29-D31 -> 793,835.50 | E32: =E29-E31 -> 643,572.56
A33: 6 - VALOR ADICIONADO RECEBIDO EM TRANSFERÊNCIA
A34: 6.1) Resultado de equivalência patrimonial
A35: 6.2) Receitas financeiras | B35: 13,853.10 | C35: 10,085.58 | D35: 6,226.53 | E35: 3,303.11
A36: 7 - VALOR ADICIONADO TOTAL A DISTRIBUIR (5+6) | B36: =B32+B35 -> 750,100.50 | C36: =C32+C35 -> 482,064.84 | D36: =D32+D35 -> 800,062.03 | E36: =E32+E35 -> 646,875.67
A37: 8 - DISTRIBUIÇÃO DO VALOR ADICIONADO (*)
A38: 8.1) Pessoal e encargos (Educação) | B38: 364,810.14 | C38: 397,096.26 | D38: 440,891.60 | E38: =571675.11-E41 -> 435,129.05
A39: 8.2) Pessoal e encargos (Assistência Social) | B39: 29,291.88 | C39: 32,090.11 | D39: =2699.35+51944.26 -> 54,643.61 | E39: 0
A40: 8.3) Pessoal e encargos (CMDCA) | D40: 0 | E40: =132416.86-E44 -> 95,601.11
A41: 8.4) Impostos, taxas e contribuições (Educação) | B41: 129,822.96 | C41: 125,344.95 | D41: =79955.83+29764.79+621.09 -> 110,341.71 | E41: 136,546.06
A42: 8.5) Impostos, taxas e contribuições (Assistência Social) | B42: 11,505.33 | C42: 11,544.12 | D42: =13050.59+2175.44+38.53 -> 15,264.56 | E42: 0
A43: 8.6) Impostos, taxas e contribuições (Rec. Próprios) | B43: 0 | C43: 0 | D43: =17921.7+4991.76+61.6 -> 22,975.06 | E43: 0
A44: 8.7) Impostos, taxas e contribuições (CMDCA) | D44: 0 | E44: 36,815.75
A45: 8.8) Juros s/ capital próprio e dividendos
A46: 9 - Superávit retidos / Déficit do exercício | B46: =B36-B38-B39-B41-B42 -> 214,670.19 | C46: =C36-C38-C39-C41-C42 -> (84,010.60) | D46: =D36-D38-D39-D41-D42-D43 -> 155,945.49 | E46: =E36-E38-E39-E41-E42-E43-E40-E44 -> (57,216.30)
E48: Batatais, 31 de dezembro de 2019.
A53: _________________________________
A54: João Fernando Zapparoli de Barrros | D54: José Roberto Del Toso
A55: Presidente | D55: TC1SP080776/O-0
A56: CPF: 971.242.818-49 | D56: CPF:203.394.028-49
D63: Maria Claret Dal Piccolo Del Toso
D64: Tesoureira
D65: CPF: 175.438.538-92

Sheet DFC
A3: ASSOCIAÇÃO BENEFICENTE JOSÉ MARTINS DE BARROS
A4: CNPJ: 44.948.552/0001-00
A7: DEMONSTRAÇÃO DO FLUXO DE CAIXA
B9: 2016 | C9: 2017 | D9: 2018 | E9: 2019
A10: Fluxo de Caixa Originados de:
A11: Fluxo de Caixa das Atividades Operacionais
A12: Superávit/ Déficit do Período | B12: 214,670.19 | C12: (84,010.60) | D12: 155,945.49 | E12: (56,857.20)
A13: Ajustes por:
A14: (+)Depreciação
A15: (+)Amortização
A16: (-)Ajustes Devedores de Exercícios Anteriores | C16: (100,683.41)
A17: (+)Perda de Variação Cambial
A18: Ganho na Venda de Bens do Imobilizado
A19: Superávit Ajustado | B19: =B12+B14+B15+B17 -> 214,670.19 | C19: =C12+C14+C15+C17+C16 -> (184,694.01) | D19: =D12+D14+D15+D17+D16 -> 155,945.49 | E19: =E12+E14+E15+E17+E16 -> (56,857.20)
A20: Aumento nos Ativos Circulantes | B20: =SUM(B21:B28) -> (67,477.62) | C20: =SUM(C21:C28) -> 133,356.62 | D20: =SUM(D21:D28) -> (33,365.64) | E20: =SUM(E21:E28) -> 16,353.75
A21: Mensalidades de Terceiros
A22: Atendimentos Realizados
A23: Adiantamentos a Empregados | B23: (1,700.00) | C23: 1,350.00 | D23: (32,775.64) | E23: 16,353.75
A24: Adiantamentos a Fornecedores | D24: (590.00)
A25: Recursos de Parcerias em Projetos
A26: Tributos a Recuperar
A27: Despesas Antecipadas
A28: Outros Valores a Receber | B28: (65,777.62) | C28: 132,006.62
A29: Diminuição nos Passivos Circulantes | B29: =SUM(B30:B37) -> (4,039.13) | C29: =SUM(C30:C37) -> 191.35 | D29: =SUM(D30:D37) -> (11,058.31) | E29: =SUM(E30:E37) -> (1,443.26)
A30: Fornecedoresde bens e serviços | B30: (7,468.83) | C30: (6,562.58) | D30: =-250-6408.97 -> (6,658.97) | E30: 4,799.74
A31: Obrigações com Empregados | B31: 3,429.70 | C31: 6,753.93 | D31: (4,399.34) | E31: (6,243.00)
A32: Obrigações Tributarias
A33: Empréstimos e Financiamentos a Pagar
A34: Recursos de Projetos em Execução
A35: Recursos de Convênios em Execução
A36: Subvenções e Assistências Governamentais
A37: Outras Obrigações a Pagar
A38: Caixa Líquido Gerado pelas Atividades Operacionais
A39: Fluxo de Caixa das Atividades de Investimento | B39: =SUM(B40:B42) -> (91,334.55) | C39: =SUM(C40:C42) -> (4,590.75) | D39: =SUM(D40:D42) -> (54,661.81) | E39: =SUM(E40:E42) -> 0
A40: Recursos Recebidos pela Venda de Bens
A41: Outros Recebimentos por Investimentos Realizados
A42: Aquisições de Bens e Direitos para o Ativo | B42: (91,334.55) | C42: (4,590.75) | D42: (54,661.81) | E42: 0
A43: Caixa Líquido Consumido pelas Atividades de Investimento
A44: Fluxo de Caixa das Atividades de Financiamento
A45: Recebimentos de Empréstimos
A46: Outros Recebimentos por Financiamentos
A47: Pagamentos de Empréstimos
A48: Pagamentos de Arrendamento Mercantil
A49: Caixa Líquido Consumido pelas Atividades Financiamento
A50: Aumento Liquído de Caixa e Equivalentes de Caixa | B50: =B12+B20+B29+B39 -> 51,818.89 | C50: =C19+C20+C29+C39 -> (55,736.79) | D50: =D19+D20+D29+D39 -> 56,859.73 | E50: =E19+E20+E29+E39 -> (41,946.71)
A51: Caixa e Equivalentes de Caixa de Inicio do Período | B51: 57,217.07 | C51: =B52 -> 109,035.96 | D51: =C52 -> 53,299.17 | E51: =D52 -> 110,158.90
A52: Caixa e Equivalentes de Caixa no Fim do Período | B52: =B51+B50 -> 109,035.96 | C52: =C51+C50 -> 53,299.17 | D52: =D51+D50 -> 110,158.90 | E52: =E51+E50 -> 68,212.19
E54: Batatais, 31 de dezembro de 2019.
A60: _________________________________
A61: João Fernando Zapparoli de Barrros | D61: José Roberto Del Toso
A62: Presidente | D62: TC1SP080776/O-0
A63: CPF: 971.242.818-49 | D63: CPF:203.394.028-49
D70: Maria Claret Dal Piccolo Del Toso
D71: Tesoureira
D72: CPF: 175.438.538-92

Sheet Indices (hidden)
A5: ÍNDICE DE LIQUIDEZ
A7: A Associação Beneficente “José Martins de Barros” – Creche Menino Jesus, vem por meio desta demonstrar o índice de liquidez, ou seja, a capacidade da Associação de saldar as suas dívidas à curto e longo prazo conforme Balanço Patrimonial encerrado em 31/12/2019, segue:
B9: · Liquidez Corrente: AC/PC: 85.574,08/35.450,11 = 2,41 (A cada um real em dívidas a Associação possui 2,41 de recursos para saldar a curto prazo).
B11: · Liquidez Seca: AC-Estoque/PC: 85.574,08/35.450,11 = 2,41 (A cada um real em dívidas a Associação possui 2,41 de recursos para saldar a curto prazo).
B13: · Liquidez Geral: AC+AÑC/PC+PÑC: 85.574,08 + 451.107,98/35.450,11 = 15,14 (A cada um real em dívidas a Associação possui 15,14 de recursos para saldar a curto prazo e longo prazo).
A17: Batatais, 31 de dezembro de 2019.
A23: João Fernando Zapparoli de Barrros | H23: José Roberto Del Toso
A24: Presidente | H24: TC1SP080776/O-0
A25: CPF: 971.242.818-49 | H25: CPF:203.394.028-49
H32: Maria Claret Dal Piccolo Del Toso
H33: Tesoureira
H34: CPF: 175.438.538-92
